[Event "Titled Tuesday Blitz July 4 Late 2023"]
[White "Sebag, Marie"]
[Black "Elsa167"]
[WhiteFideId "617822"]
[WhiteElo "2577"]
[BlackElo "2858"]
[Result "1-0"]
[Round "5"]
[TimeControl "180+2"]
[Date "2023.07.04"]
[WhiteClock "0:00:06"]
[BlackClock "0:00:07"]
[Board "28"]

1. e4 {[%clk 0:02:59]}  e6 {[%clk 0:02:59]} 2. d4 {[%clk 0:02:57]}  d5 {[%clk 0:03:00]} 3. Nd2 {[%clk 0:02:54]}  c5 {[%clk 0:02:59]} 4. exd5 {[%clk 0:02:53]}  Qxd5 {[%clk 0:02:58]} 5. Ngf3 {[%clk 0:02:53]}  cxd4 {[%clk 0:02:59]} 6. Bc4 {[%clk 0:02:53]}  Qd7 {[%clk 0:02:59]} 7. O-O {[%clk 0:02:53]}  Nc6 {[%clk 0:03:00]} 8. Qe2 {[%clk 0:02:52]}  Nf6 {[%clk 0:02:58]} 9. Rd1 {[%clk 0:02:50]}  a6 {[%clk 0:02:57]} 10. a4 {[%clk 0:02:50]}  Qc7 {[%clk 0:02:57]} 11. Nb3 {[%clk 0:02:49]}  Bd7 {[%clk 0:02:55]} 12. Nbxd4 {[%clk 0:02:41]}  Be7 {[%clk 0:02:52]} 13. b3 {[%clk 0:02:30]}  O-O {[%clk 0:02:43]} 14. Bb2 {[%clk 0:02:25]}  Rfd8 {[%clk 0:02:40]} 15. h3 {[%clk 0:02:01]}  Nxd4 {[%clk 0:02:33]} 16. Bxd4 {[%clk 0:01:57]}  Bc6 {[%clk 0:02:28]} 17. Ne5 {[%clk 0:01:48]}  Bd5 {[%clk 0:02:24]} 18. Bd3 {[%clk 0:01:37]}  Rac8 {[%clk 0:01:45]} 19. Bb2 {[%clk 0:01:25]}  a5 {[%clk 0:01:29]} 20. Ng4 {[%clk 0:01:17]}  Nxg4 {[%clk 0:01:16]} 21. Qxg4 {[%clk 0:01:16]}  Bf8 {[%clk 0:01:01]} 22. Bf6 {[%clk 0:01:10]}  Re8 {[%clk 0:00:54]} 23. Re1 {[%clk 0:00:53]}  g6 {[%clk 0:00:44]} 24. h4 {[%clk 0:00:43]}  Bg7 {[%clk 0:00:44]} 25. Bxg7 {[%clk 0:00:42]}  Kxg7 {[%clk 0:00:45]} 26. h5 {[%clk 0:00:40]}  Qc3 {[%clk 0:00:44]} 27. Rad1 {[%clk 0:00:33]}  Red8 {[%clk 0:00:43]} 28. Re3 {[%clk 0:00:31]}  f5 {[%clk 0:00:20]} 29. h6+ {[%clk 0:00:20]}  Kg8 {[%clk 0:00:14]} 30. Qg5 {[%clk 0:00:19]}  Rf8 {[%clk 0:00:07]} 31. Rg3 {[%clk 0:00:18]}  Qf6 {[%clk 0:00:07]} 32. Qe3 {[%clk 0:00:17]}  f4 {[%clk 0:00:07]} 33. Rxg6+ {[%clk 0:00:06]}  hxg6 {[%clk 0:00:06]} 34. Qh3 {[%clk 0:00:07]}  Kh7 {[%clk 0:00:06]} 35. Re1 {[%clk 0:00:07]}  Qg5 {[%clk 0:00:06]} 36. f3 {[%clk 0:00:06]}  Qxh6 {[%clk 0:00:06]} 37. Qg4 {[%clk 0:00:06]}  Qh5 {[%clk 0:00:06]} 38. Qxh5+ {[%clk 0:00:06]}  Kg7 {[%clk 0:00:06]} 39. Qxg6+ {[%clk 0:00:06]}  Kh8 {[%clk 0:00:07]} 40. Qh7# {[%clk 0:00:06]} 1-0


[Site "https://www.chess.com"]

[Event "Titled Tuesday Blitz July 4 Late 2023"]
[White "Oro, Faustino"]
[Black "D`Arruda, Ricardo D."]
[WhiteFideId "20000197"]
[BlackFideId "100692"]
[WhiteElo "2827"]
[BlackElo "2568"]
[Result "1-0"]
[Round "5"]
[TimeControl "180+2"]
[Date "2023.07.04"]
[WhiteClock "0:00:16"]
[BlackClock "0:00:08"]
[Board "31"]

1. e4 {[%clk 0:03:00]}  c5 {[%clk 0:02:49]} 2. Nf3 {[%clk 0:03:00]}  Nc6 {[%clk 0:02:48]} 3. Bb5 {[%clk 0:03:00]}  g6 {[%clk 0:02:47]} 4. O-O {[%clk 0:02:59]}  Bg7 {[%clk 0:02:47]} 5. c3 {[%clk 0:02:56]}  Nf6 {[%clk 0:02:46]} 6. Re1 {[%clk 0:02:55]}  O-O {[%clk 0:02:45]} 7. d4 {[%clk 0:02:49]}  cxd4 {[%clk 0:02:44]} 8. cxd4 {[%clk 0:02:49]}  d5 {[%clk 0:02:45]} 9. e5 {[%clk 0:02:49]}  Ne4 {[%clk 0:02:45]} 10. Nbd2 {[%clk 0:02:33]}  Bf5 {[%clk 0:02:41]} 11. Nb3 {[%clk 0:02:02]}  Qb6 {[%clk 0:02:34]} 12. Bd3 {[%clk 0:02:02]}  Rfd8 {[%clk 0:02:21]} 13. Be3 {[%clk 0:02:01]}  Rac8 {[%clk 0:02:19]} 14. Rc1 {[%clk 0:02:00]}  Nb4 {[%clk 0:02:13]} 15. Bb1 {[%clk 0:02:00]}  Rxc1 {[%clk 0:02:11]} 16. Bxc1 {[%clk 0:01:53]}  Nxf2 {[%clk 0:02:03]} 17. Kxf2 {[%clk 0:01:46]}  Bxb1 {[%clk 0:02:03]} 18. Kg1 {[%clk 0:01:30]}  Bxa2 {[%clk 0:01:37]} 19. Nc5 {[%clk 0:01:26]}  Bc4 {[%clk 0:01:33]} 20. Bg5 {[%clk 0:01:23]}  f6 {[%clk 0:01:26]} 21. exf6 {[%clk 0:01:23]}  exf6 {[%clk 0:01:27]} 22. Bh4 {[%clk 0:01:17]}  g5 {[%clk 0:01:23]} 23. Bg3 {[%clk 0:01:15]}  Qc6 {[%clk 0:01:10]} 24. Re6 {[%clk 0:01:11]}  Qb5 {[%clk 0:01:07]} 25. b3 {[%clk 0:01:08]}  Bd3 {[%clk 0:01:04]} 26. Re7 {[%clk 0:01:07]}  Bc2 {[%clk 0:00:46]} 27. Qe1 {[%clk 0:00:59]}  Nd3 {[%clk 0:00:44]} 28. Rxg7+ {[%clk 0:00:57]}  Kxg7 {[%clk 0:00:43]} 29. Qe7+ {[%clk 0:00:57]}  Kg6 {[%clk 0:00:43]} 30. Qxd8 {[%clk 0:00:52]}  Nxc5 {[%clk 0:00:42]} 31. Qg8+ {[%clk 0:00:47]}  Kh6 {[%clk 0:00:42]} 32. Qf8+ {[%clk 0:00:47]}  Kg6 {[%clk 0:00:42]} 33. dxc5 {[%clk 0:00:41]}  Qxb3 {[%clk 0:00:40]} 34. Qg8+ {[%clk 0:00:36]}  Kh6 {[%clk 0:00:39]} 35. h4 {[%clk 0:00:32]}  Qe3+ {[%clk 0:00:38]} 36. Kh2 {[%clk 0:00:31]}  gxh4 {[%clk 0:00:33]} 37. Qf8+ {[%clk 0:00:25]}  Kh5 {[%clk 0:00:32]} 38. Nxh4 {[%clk 0:00:22]}  Be4 {[%clk 0:00:30]} 39. Qxf6 {[%clk 0:00:20]}  Qg5 {[%clk 0:00:19]} 40. Qf7+ {[%clk 0:00:19]}  Bg6 {[%clk 0:00:18]} 41. Qxb7 {[%clk 0:00:19]}  d4 {[%clk 0:00:16]} 42. c6 {[%clk 0:00:18]}  d3 {[%clk 0:00:11]} 43. c7 {[%clk 0:00:16]}  Bf5 {[%clk 0:00:12]} 44. Nxf5 {[%clk 0:00:15]}  Qxf5 {[%clk 0:00:08]} 45. c8=Q {[%clk 0:00:16]} 1-0


[Site "https://www.chess.com"]

[Event "Titled Tuesday Blitz July 4 Late 2023"]
[White "Novik, Maxim"]
[Black "Tristan, Leonardo"]
[WhiteFideId "4102924"]
[BlackFideId "113816"]
[WhiteElo "2528"]
[BlackElo "2779"]
[Result "0-1"]
[Round "5"]
[TimeControl "180+2"]
[Date "2023.07.04"]
[WhiteClock "0:00:23"]
[BlackClock "0:01:12"]
[Board "35"]

1. e4 {[%clk 0:03:00]}  d5 {[%clk 0:02:59]} 2. exd5 {[%clk 0:03:00]}  Qxd5 {[%clk 0:03:00]} 3. Nc3 {[%clk 0:03:00]}  Qa5 {[%clk 0:03:00]} 4. d4 {[%clk 0:03:00]}  Nf6 {[%clk 0:03:00]} 5. Nf3 {[%clk 0:02:58]}  Bf5 {[%clk 0:03:00]} 6. Bc4 {[%clk 0:02:52]}  e6 {[%clk 0:03:00]} 7. Bd2 {[%clk 0:02:48]}  Bb4 {[%clk 0:03:00]} 8. a3 {[%clk 0:02:45]}  Bxc3 {[%clk 0:03:00]} 9. Bxc3 {[%clk 0:02:45]}  Qb6 {[%clk 0:03:01]} 10. O-O {[%clk 0:02:36]}  Nc6 {[%clk 0:02:59]} 11. h3 {[%clk 0:02:12]}  O-O {[%clk 0:02:57]} 12. Qe2 {[%clk 0:02:00]}  Rad8 {[%clk 0:02:57]} 13. Rad1 {[%clk 0:01:59]}  Rfe8 {[%clk 0:02:57]} 14. Nh4 {[%clk 0:01:40]}  Nxd4 {[%clk 0:02:35]} 15. Bxd4 {[%clk 0:01:39]}  Rxd4 {[%clk 0:02:36]} 16. Rxd4 {[%clk 0:01:21]}  Qxd4 {[%clk 0:02:35]} 17. Nxf5 {[%clk 0:01:19]}  exf5 {[%clk 0:02:36]} 18. Qd3 {[%clk 0:01:19]}  Qxb2 {[%clk 0:02:25]} 19. Qxf5 {[%clk 0:01:18]}  Qxa3 {[%clk 0:02:21]} 20. Rd1 {[%clk 0:01:08]}  Qc3 {[%clk 0:02:06]} 21. Bb3 {[%clk 0:01:00]}  Qe5 {[%clk 0:01:33]} 22. Qf3 {[%clk 0:00:52]}  c6 {[%clk 0:01:32]} 23. Rd7 {[%clk 0:00:50]}  Nxd7 {[%clk 0:01:27]} 24. Qxf7+ {[%clk 0:00:49]}  Kh8 {[%clk 0:01:27]} 25. Qxd7 {[%clk 0:00:47]}  Qe7 {[%clk 0:01:24]} 26. Qd4 {[%clk 0:00:45]}  Qe1+ {[%clk 0:01:24]} 27. Kh2 {[%clk 0:00:44]}  Qe5+ {[%clk 0:01:24]} 28. Qxe5 {[%clk 0:00:44]}  Rxe5 {[%clk 0:01:25]} 29. f4 {[%clk 0:00:45]}  Re3 {[%clk 0:01:23]} 30. g4 {[%clk 0:00:41]}  a5 {[%clk 0:01:21]} 31. Kg2 {[%clk 0:00:41]}  b5 {[%clk 0:01:18]} 32. Kf2 {[%clk 0:00:41]}  Rxb3 {[%clk 0:01:12]} 33. cxb3 {[%clk 0:00:23]}  a4 {[%clk 0:01:12]} 0-1


[Site "https://www.chess.com"]

[Event "Titled Tuesday Blitz July 4 Late 2023"]
[White "Barski, Radoslaw"]
[Black "Morefield, Jason"]
[WhiteFideId "1131710"]
[BlackFideId "30920825"]
[WhiteElo "2518"]
[BlackElo "2759"]
[Result "0-1"]
[Round "5"]
[TimeControl "180+2"]
[Date "2023.07.04"]
[WhiteClock "0:00:22"]
[BlackClock "0:02:03"]
[Board "38"]

1. e4 {[%clk 0:02:54]}  c5 {[%clk 0:02:58]} 2. Nf3 {[%clk 0:02:54]}  d6 {[%clk 0:02:59]} 3. Bb5+ {[%clk 0:02:54]}  Bd7 {[%clk 0:02:59]} 4. Bxd7+ {[%clk 0:02:53]}  Nxd7 {[%clk 0:03:00]} 5. O-O {[%clk 0:02:52]}  Ngf6 {[%clk 0:03:00]} 6. Qe2 {[%clk 0:02:51]}  e6 {[%clk 0:03:00]} 7. b3 {[%clk 0:02:51]}  Qb6 {[%clk 0:02:56]} 8. Bb2 {[%clk 0:02:49]}  Be7 {[%clk 0:02:56]} 9. c4 {[%clk 0:02:49]}  O-O {[%clk 0:02:55]} 10. d4 {[%clk 0:02:46]}  cxd4 {[%clk 0:02:52]} 11. Nxd4 {[%clk 0:02:46]}  Rfe8 {[%clk 0:02:51]} 12. Kh1 {[%clk 0:02:36]}  d5 {[%clk 0:02:50]} 13. e5 {[%clk 0:02:32]}  Ne4 {[%clk 0:02:49]} 14. cxd5 {[%clk 0:02:26]}  exd5 {[%clk 0:02:48]} 15. f4 {[%clk 0:02:11]}  Bc5 {[%clk 0:02:43]} 16. Nf5 {[%clk 0:01:54]}  Qg6 {[%clk 0:02:27]} 17. Ne3 {[%clk 0:01:10]}  d4 {[%clk 0:02:06]} 18. Nf5 {[%clk 0:00:22]}  Qxf5 {[%clk 0:02:03]} 0-1


[Site "https://www.chess.com"]

[Event "Titled Tuesday Blitz July 4 Late 2023"]
[White "Mattheii"]
[Black "Fernandez Guillen, Ernesto J."]
[BlackFideId "3512428"]
[WhiteElo "2515"]
[BlackElo "2733"]
[Result "0-1"]
[Round "5"]
[TimeControl "180+2"]
[Date "2023.07.04"]
[WhiteClock "0:00:00"]
[BlackClock "0:00:10"]
[Board "39"]

1. d4 {[%clk 0:03:00]}  Nf6 {[%clk 0:02:55]} 2. c4 {[%clk 0:03:01]}  g6 {[%clk 0:02:43]} 3. Nc3 {[%clk 0:03:01]}  d6 {[%clk 0:02:43]} 4. e4 {[%clk 0:03:01]}  Bg7 {[%clk 0:02:41]} 5. h3 {[%clk 0:03:01]}  O-O {[%clk 0:02:42]} 6. Bg5 {[%clk 0:03:02]}  Nc6 {[%clk 0:02:39]} 7. Nf3 {[%clk 0:02:59]}  e5 {[%clk 0:02:39]} 8. d5 {[%clk 0:02:58]}  Ne7 {[%clk 0:02:39]} 9. Bd3 {[%clk 0:02:57]}  Nh5 {[%clk 0:02:38]} 10. g3 {[%clk 0:02:45]}  c5 {[%clk 0:02:31]} 11. Qd2 {[%clk 0:02:32]}  f6 {[%clk 0:02:29]} 12. Bh6 {[%clk 0:02:13]}  a6 {[%clk 0:02:20]} 13. Bxg7 {[%clk 0:02:10]}  Kxg7 {[%clk 0:02:20]} 14. a4 {[%clk 0:02:02]}  b6 {[%clk 0:02:17]} 15. Ne2 {[%clk 0:01:56]}  g5 {[%clk 0:02:07]} 16. g4 {[%clk 0:01:34]}  Nf4 {[%clk 0:02:07]} 17. Nxf4 {[%clk 0:01:34]}  exf4 {[%clk 0:02:07]} 18. Ke2 {[%clk 0:01:35]}  Ng6 {[%clk 0:02:04]} 19. Rag1 {[%clk 0:01:31]}  Re8 {[%clk 0:02:03]} 20. h4 {[%clk 0:01:28]}  h6 {[%clk 0:01:32]} 21. Kd1 {[%clk 0:01:18]}  b5 {[%clk 0:01:26]} 22. cxb5 {[%clk 0:01:15]}  axb5 {[%clk 0:01:27]} 23. Bxb5 {[%clk 0:01:14]}  Bd7 {[%clk 0:01:26]} 24. hxg5 {[%clk 0:01:13]}  hxg5 {[%clk 0:01:25]} 25. Qc3 {[%clk 0:00:31]}  Bxb5 {[%clk 0:01:18]} 26. axb5 {[%clk 0:00:27]}  Ra1+ {[%clk 0:01:16]} 27. Kc2 {[%clk 0:00:26]}  Rxg1 {[%clk 0:01:17]} 28. Rxg1 {[%clk 0:00:26]}  Kf7 {[%clk 0:00:53]} 29. Nd2 {[%clk 0:00:16]}  Ne5 {[%clk 0:00:46]} 30. f3 {[%clk 0:00:16]}  Qa8 {[%clk 0:00:40]} 31. Qa3 {[%clk 0:00:13]}  Qb7 {[%clk 0:00:25]} 32. Qa6 {[%clk 0:00:14]}  Rb8 {[%clk 0:00:25]} 33. Qxd6 {[%clk 0:00:11]}  Qxb5 {[%clk 0:00:25]} 34. Qc7+ {[%clk 0:00:09]}  Nd7 {[%clk 0:00:14]} 35. b3 {[%clk 0:00:08]}  c4 {[%clk 0:00:14]} 36. Qxc4 {[%clk 0:00:07]}  Qb6 {[%clk 0:00:14]} 37. d6+ {[%clk 0:00:07]}  Kg7 {[%clk 0:00:13]} 38. Rh1 {[%clk 0:00:08]}  Ne5 {[%clk 0:00:12]} 39. Qe6 {[%clk 0:00:06]}  Qb7 {[%clk 0:00:08]} 40. Qe7+ {[%clk 0:00:06]}  Qxe7 {[%clk 0:00:09]} 41. dxe7 {[%clk 0:00:06]}  Re8 {[%clk 0:00:09]} 42. Kc3 {[%clk 0:00:04]}  Rxe7 {[%clk 0:00:09]} 43. Ra1 {[%clk 0:00:05]}  Rc7+ {[%clk 0:00:09]} 44. Kb2 {[%clk 0:00:03]}  Rd7 {[%clk 0:00:10]} 45. Kc3 {[%clk 0:00:03]}  Rd3+ {[%clk 0:00:10]} 46. Kc2 {[%clk 0:00:04]}  Re3 {[%clk 0:00:11]} 47. Ra7+ {[%clk 0:00:03]}  Kg6 {[%clk 0:00:11]} 48. b4 {[%clk 0:00:04]}  Re2 {[%clk 0:00:12]} 49. Kc3 {[%clk 0:00:03]}  Nxf3 {[%clk 0:00:11]} 50. Nxf3 {[%clk 0:00:03]}  Re3+ {[%clk 0:00:12]} 51. Kd4 {[%clk 0:00:04]}  Rxf3 {[%clk 0:00:13]} 52. b5 {[%clk 0:00:04]}  Rb3 {[%clk 0:00:13]} 53. Kc4 {[%clk 0:00:05]}  Rb1 {[%clk 0:00:13]} 54. Ra3 {[%clk 0:00:05]}  Re1 {[%clk 0:00:11]} 55. Kd5 {[%clk 0:00:04]}  Rd1+ {[%clk 0:00:10]} 56. Kc6 {[%clk 0:00:04]}  Rc1+ {[%clk 0:00:10]} 57. Kb7 {[%clk 0:00:04]}  Rc4 {[%clk 0:00:10]} 58. b6 {[%clk 0:00:03]}  Rxe4 {[%clk 0:00:11]} 59. Kb8 {[%clk 0:00:04]}  f5 {[%clk 0:00:11]} 60. gxf5+ {[%clk 0:00:03]}  Kxf5 {[%clk 0:00:12]} 61. b7 {[%clk 0:00:04]}  Rb4 {[%clk 0:00:12]} 62. Kc7 {[%clk 0:00:03]}  Kg4 {[%clk 0:00:11]} 63. Ra6 {[%clk 0:00:02]}  Rxb7+ {[%clk 0:00:10]} 64. Kxb7 {[%clk 0:00:03]}  f3 {[%clk 0:00:11]} 65. Ra2 {[%clk 0:00:03]}  Kg3 {[%clk 0:00:11]} 66. Kc6 {[%clk 0:00:04]}  f2 {[%clk 0:00:11]} 67. Ra1 {[%clk 0:00:05]}  Kf3 {[%clk 0:00:10]} 68. Kd5 {[%clk 0:00:05]}  g4 {[%clk 0:00:11]} 69. Kd4 {[%clk 0:00:03]}  g3 {[%clk 0:00:11]} 70. Ra3+ {[%clk 0:00:02]}  Kg2 {[%clk 0:00:11]} 71. Ra2 {[%clk 0:00:03]}  Kg1 {[%clk 0:00:11]} 72. Ke3 {[%clk 0:00:00]}  f1=Q {[%clk 0:00:10]} 0-1


[Site "https://www.chess.com"]

[Event "Titled Tuesday Blitz July 4 Late 2023"]
[White "Dixit, Nikhil"]
[Black "Wieczorek, Oskar"]
[WhiteFideId "5059534"]
[BlackFideId "1133950"]
[WhiteElo "2504"]
[BlackElo "2724"]
[Result "1-0"]
[Round "5"]
[TimeControl "180+2"]
[Date "2023.07.04"]
[WhiteClock "0:00:30"]
[BlackClock "0:01:48"]
[Board "40"]

1. e4 {[%clk 0:02:55]}  c5 {[%clk 0:02:58]} 2. Nf3 {[%clk 0:02:55]}  e6 {[%clk 0:02:58]} 3. b3 {[%clk 0:02:50]}  a6 {[%clk 0:02:59]} 4. Bb2 {[%clk 0:02:50]}  d5 {[%clk 0:02:59]} 5. exd5 {[%clk 0:02:49]}  exd5 {[%clk 0:03:00]} 6. Qe2+ {[%clk 0:02:30]}  Be6 {[%clk 0:02:57]} 7. d4 {[%clk 0:02:26]}  Nf6 {[%clk 0:02:57]} 8. Ng5 {[%clk 0:02:17]}  Qd7 {[%clk 0:02:48]} 9. Nxe6 {[%clk 0:02:08]}  Qxe6 {[%clk 0:02:42]} 10. Nd2 {[%clk 0:02:05]}  Nc6 {[%clk 0:02:41]} 11. Qxe6+ {[%clk 0:01:59]}  fxe6 {[%clk 0:02:41]} 12. dxc5 {[%clk 0:01:56]}  Bxc5 {[%clk 0:02:42]} 13. Bd3 {[%clk 0:01:52]}  O-O {[%clk 0:02:35]} 14. f3 {[%clk 0:01:20]}  Rac8 {[%clk 0:02:29]} 15. Ke2 {[%clk 0:01:19]}  Bd4 {[%clk 0:02:22]} 16. Rab1 {[%clk 0:01:07]}  Bxb2 {[%clk 0:02:16]} 17. Rxb2 {[%clk 0:01:08]}  Nd4+ {[%clk 0:02:17]} 18. Kf2 {[%clk 0:01:06]}  Ng4+ {[%clk 0:02:14]} 19. Kg3 {[%clk 0:01:04]}  Ne5 {[%clk 0:02:14]} 20. Re1 {[%clk 0:01:00]}  Nxd3 {[%clk 0:02:11]} 21. cxd3 {[%clk 0:01:01]}  Rc3 {[%clk 0:02:12]} 22. Nf1 {[%clk 0:00:55]}  Rxd3 {[%clk 0:02:12]} 23. Rd2 {[%clk 0:00:56]}  Rxd2 {[%clk 0:02:10]} 24. Nxd2 {[%clk 0:00:57]}  Rc8 {[%clk 0:02:11]} 25. f4 {[%clk 0:00:37]}  Rc2 {[%clk 0:01:58]} 26. Nf3 {[%clk 0:00:34]}  Nxf3 {[%clk 0:01:59]} 27. Kxf3 {[%clk 0:00:31]}  Kf8 {[%clk 0:01:59]} 28. Rxe6 {[%clk 0:00:31]}  Rxa2 {[%clk 0:01:58]} 29. Rb6 {[%clk 0:00:31]}  Rb2 {[%clk 0:01:50]} 30. Rxb7 {[%clk 0:00:31]}  a5 {[%clk 0:01:51]} 31. Rb5 {[%clk 0:00:31]}  a4 {[%clk 0:01:50]} 32. bxa4 {[%clk 0:00:30]}  Ra2 {[%clk 0:01:47]} 33. Rxd5 {[%clk 0:00:30]}  Rxa4 {[%clk 0:01:47]} 34. Rd3 {[%clk 0:00:30]}  h6 {[%clk 0:01:47]} 35. Re3 {[%clk 0:00:30]}  Ra1 {[%clk 0:01:48]} 36. g3 {[%clk 0:00:30]}  Kf7 {[%clk 0:01:48]} 37. Kg2 {[%clk 0:00:31]}  Kf6 {[%clk 0:01:49]} 38. Rf3 {[%clk 0:00:31]}  Ra2+ {[%clk 0:01:50]} 39. Rf2 {[%clk 0:00:31]}  Ra1 {[%clk 0:01:51]} 40. Rf1 {[%clk 0:00:31]}  g5 {[%clk 0:01:48]} 41. Rxa1 {[%clk 0:00:30]} 1-0


[Site "https://www.chess.com"]

[Event "Titled Tuesday Blitz July 4 Late 2023"]
[White "Horcajuelo Rocamora, Martin"]
[Black "Ashraf, Artin"]
[WhiteFideId "24573027"]
[BlackFideId "22514805"]
[WhiteElo "2497"]
[BlackElo "2719"]
[Result "0-1"]
[Round "5"]
[TimeControl "180+2"]
[Date "2023.07.04"]
[WhiteClock "0:01:43"]
[BlackClock "0:01:12"]
[Board "41"]

1. e4 {[%clk 0:03:00]}  c5 {[%clk 0:02:58]} 2. Nf3 {[%clk 0:03:00]}  d6 {[%clk 0:02:58]} 3. d4 {[%clk 0:03:01]}  cxd4 {[%clk 0:02:59]} 4. Nxd4 {[%clk 0:03:01]}  Nf6 {[%clk 0:02:59]} 5. Nc3 {[%clk 0:03:02]}  a6 {[%clk 0:03:00]} 6. Be2 {[%clk 0:02:58]}  e5 {[%clk 0:02:59]} 7. Nf3 {[%clk 0:02:59]}  Be7 {[%clk 0:02:53]} 8. Bg5 {[%clk 0:02:59]}  Be6 {[%clk 0:02:51]} 9. Bxf6 {[%clk 0:02:59]}  Bxf6 {[%clk 0:02:52]} 10. Qd3 {[%clk 0:02:59]}  Be7 {[%clk 0:02:47]} 11. Nd5 {[%clk 0:02:58]}  Nd7 {[%clk 0:02:46]} 12. c4 {[%clk 0:02:56]}  O-O {[%clk 0:02:45]} 13. O-O {[%clk 0:02:57]}  Bxd5 {[%clk 0:02:40]} 14. cxd5 {[%clk 0:02:55]}  g6 {[%clk 0:02:33]} 15. Nd2 {[%clk 0:02:53]}  f5 {[%clk 0:02:33]} 16. f3 {[%clk 0:02:54]}  Nc5 {[%clk 0:02:26]} 17. Qa3 {[%clk 0:02:48]}  Bg5 {[%clk 0:02:24]} 18. Nc4 {[%clk 0:02:44]}  b5 {[%clk 0:02:15]} 19. Nxe5 {[%clk 0:02:41]}  Qb6 {[%clk 0:02:11]} 20. f4 {[%clk 0:02:31]}  dxe5 {[%clk 0:01:52]} 21. fxg5 {[%clk 0:02:30]}  Nxe4+ {[%clk 0:01:52]} 22. Kh1 {[%clk 0:02:30]}  Nf2+ {[%clk 0:01:52]} 23. Rxf2 {[%clk 0:02:30]}  Qxf2 {[%clk 0:01:53]} 24. Qd3 {[%clk 0:02:27]}  Qd4 {[%clk 0:01:41]} 25. Qb3 {[%clk 0:02:22]}  Qa4 {[%clk 0:01:35]} 26. Qd3 {[%clk 0:02:13]}  Qe4 {[%clk 0:01:33]} 27. Qxe4 {[%clk 0:01:57]}  fxe4 {[%clk 0:01:33]} 28. Bg4 {[%clk 0:01:56]}  Rf2 {[%clk 0:01:24]} 29. d6 {[%clk 0:01:53]}  Rd8 {[%clk 0:01:20]} 30. d7 {[%clk 0:01:53]}  Rxb2 {[%clk 0:01:19]} 31. h4 {[%clk 0:01:51]}  Kf8 {[%clk 0:01:17]} 32. Re1 {[%clk 0:01:51]}  Rxa2 {[%clk 0:01:14]} 33. Rxe4 {[%clk 0:01:50]}  Ra4 {[%clk 0:01:14]} 34. Rxa4 {[%clk 0:01:45]}  bxa4 {[%clk 0:01:15]} 35. Kg1 {[%clk 0:01:46]}  Ke7 {[%clk 0:01:12]} 36. Kf2 {[%clk 0:01:43]}  a3 {[%clk 0:01:12]} 0-1


[Site "https://www.chess.com"]

[Event "Titled Tuesday Blitz July 4 Late 2023"]
[White "Jaracz, Pawel"]
[Black "Molenda, Marcin"]
[WhiteFideId "1102222"]
[BlackFideId "1173065"]
[WhiteElo "2712"]
[BlackElo "2495"]
[Result "1-0"]
[Round "5"]
[TimeControl "180+2"]
[Date "2023.07.04"]
[WhiteClock "0:01:03"]
[BlackClock "0:00:04"]
[Board "42"]

1. d4 {[%clk 0:02:56]}  Nf6 {[%clk 0:02:56]} 2. c4 {[%clk 0:02:56]}  g6 {[%clk 0:02:57]} 3. g3 {[%clk 0:02:55]}  Bg7 {[%clk 0:02:56]} 4. Bg2 {[%clk 0:02:55]}  c5 {[%clk 0:02:56]} 5. dxc5 {[%clk 0:02:53]}  Qa5+ {[%clk 0:02:54]} 6. Nc3 {[%clk 0:02:45]}  Qxc5 {[%clk 0:02:53]} 7. Qd3 {[%clk 0:02:26]}  Nc6 {[%clk 0:02:49]} 8. b3 {[%clk 0:01:51]}  Ng4 {[%clk 0:02:07]} 9. Nh3 {[%clk 0:01:41]}  O-O {[%clk 0:01:26]} 10. O-O {[%clk 0:01:39]}  d6 {[%clk 0:01:26]} 11. Bb2 {[%clk 0:01:34]}  Bf5 {[%clk 0:01:18]} 12. Qd2 {[%clk 0:01:34]}  a5 {[%clk 0:01:00]} 13. Nf4 {[%clk 0:01:32]}  Bh6 {[%clk 0:00:53]} 14. e3 {[%clk 0:01:30]}  Nf6 {[%clk 0:00:43]} 15. Rac1 {[%clk 0:01:19]}  Rfd8 {[%clk 0:00:36]} 16. Ncd5 {[%clk 0:01:18]}  Ne4 {[%clk 0:00:28]} 17. Bxe4 {[%clk 0:01:02]}  Bxe4 {[%clk 0:00:29]} 18. Qc3 {[%clk 0:01:02]}  e5 {[%clk 0:00:13]} 19. Nf6+ {[%clk 0:01:02]}  Kg7 {[%clk 0:00:04]} 20. Nxe4 {[%clk 0:01:03]} 1-0


[Site "https://www.chess.com"]

[Event "Titled Tuesday Blitz July 4 Late 2023"]
[White "Silva, Caio Henrique Angelico"]
[Black "Pulvett Marin, Daniel Eduardo"]
[WhiteFideId "22777210"]
[BlackFideId "3900410"]
[WhiteElo "2494"]
[BlackElo "2704"]
[Result "0-1"]
[Round "5"]
[TimeControl "180+2"]
[Date "2023.07.04"]
[WhiteClock "0:00:06"]
[BlackClock "0:01:05"]
[Board "43"]

1. d4 {[%clk 0:02:53]}  Nf6 {[%clk 0:02:58]} 2. Nf3 {[%clk 0:02:53]}  g6 {[%clk 0:02:55]} 3. g3 {[%clk 0:02:52]}  Bg7 {[%clk 0:02:53]} 4. Bg2 {[%clk 0:02:53]}  O-O {[%clk 0:02:53]} 5. O-O {[%clk 0:02:54]}  d6 {[%clk 0:02:54]} 6. c4 {[%clk 0:02:54]}  c5 {[%clk 0:02:54]} 7. dxc5 {[%clk 0:02:52]}  dxc5 {[%clk 0:02:55]} 8. Nc3 {[%clk 0:02:50]}  Nc6 {[%clk 0:02:54]} 9. Be3 {[%clk 0:02:48]}  Be6 {[%clk 0:02:40]} 10. Qa4 {[%clk 0:02:39]}  Nd4 {[%clk 0:02:35]} 11. Rfd1 {[%clk 0:02:06]}  Bd7 {[%clk 0:02:32]} 12. Qa3 {[%clk 0:01:48]}  Nc2 {[%clk 0:02:31]} 13. Qxc5 {[%clk 0:01:47]}  b6 {[%clk 0:02:28]} 14. Qg5 {[%clk 0:01:40]}  h6 {[%clk 0:02:25]} 15. Qh4 {[%clk 0:01:33]}  g5 {[%clk 0:02:22]} 16. Bxg5 {[%clk 0:01:26]}  hxg5 {[%clk 0:02:23]} 17. Nxg5 {[%clk 0:01:26]}  Nxa1 {[%clk 0:02:06]} 18. Nd5 {[%clk 0:01:24]}  Re8 {[%clk 0:01:59]} 19. Nxf6+ {[%clk 0:01:14]}  exf6 {[%clk 0:01:58]} 20. Qh7+ {[%clk 0:01:14]}  Kf8 {[%clk 0:01:58]} 21. Nxf7 {[%clk 0:01:10]}  Kxf7 {[%clk 0:01:32]} 22. Bd5+ {[%clk 0:01:09]}  Be6 {[%clk 0:01:30]} 23. Bxe6+ {[%clk 0:01:08]}  Rxe6 {[%clk 0:01:31]} 24. Rxd8 {[%clk 0:00:52]}  Rxd8 {[%clk 0:01:32]} 25. Qb1 {[%clk 0:00:52]}  Red6 {[%clk 0:01:32]} 26. Kg2 {[%clk 0:00:50]}  Rd1 {[%clk 0:01:31]} 27. Qe4 {[%clk 0:00:47]}  R1d2 {[%clk 0:01:24]} 28. Qf5 {[%clk 0:00:46]}  Nc2 {[%clk 0:01:20]} 29. h4 {[%clk 0:00:41]}  Re8 {[%clk 0:01:13]} 30. Qh5+ {[%clk 0:00:32]}  Kf8 {[%clk 0:01:13]} 31. Qg6 {[%clk 0:00:22]}  Rexe2 {[%clk 0:01:06]} 32. h5 {[%clk 0:00:20]}  Rxf2+ {[%clk 0:01:06]} 33. Kh3 {[%clk 0:00:21]}  Ne3 {[%clk 0:01:05]} 34. g4 {[%clk 0:00:06]}  Rf3+ {[%clk 0:01:05]} 0-1


[Site "https://www.chess.com"]